bitfinex/quotes_SOLUSD_20240814
["timestamp","ask_amount","ask_price","bid_price","bid_amount"]
[1723622659879,6.8662,145.64,145.57,15.2828]
[1723622662497,21.34372269,145.63,145.57,15.2828]
[1723622664088,12.76,145.61,145.57,15.2828]
[1723622664392,0.12549,145.62,145.52,6.4776]
[1723622664393,19.6286,145.59,145.52,6.4776]
[1723622664576,12.76,145.59,145.52,6.4776]
[1723622664963,1.71763417,145.58,145.52,6.4776]
[1723622665167,1.7176346,145.57,145.52,6.4776]
[1723622665367,19.6286,145.59,145.52,6.4776]
[1723622665595,45.12549,145.58,145.52,6.4776]
[1723622668100,0.12549,145.58,145.52,6.4776]
[1723622668276,45.12549,145.58,145.52,6.4776]
[1723622668696,1.71768371,145.57,145.52,6.4776]
[1723622668907,51.99459,145.58,145.52,6.4776]
[1723622669199,20.00607,145.57,145.52,6.4776]
[1723622669393,45.12549,145.56,145.52,6.4776]
[1723622669606,1.71797485,145.55,145.52,6.4776]
[1723622669785,45.12549,145.56,145.52,6.4776]
[1723622670924,13.01098,145.57,145.52,6.4776]
[1723622671132,0.12549,145.58,145.52,6.4776]
[1723622671433,78.13647,145.58,145.52,6.4776]
[1723622672110,0.25098,145.57,145.52,6.4776]
[1723622672310,0.12549,145.57,145.52,6.4776]
[1723622673030,7.12058,145.57,145.52,6.4776]
[1723622674230,0.25098,145.57,145.52,6.4776]
[1723622677132,84.88018,145.58,145.52,6.4776]
[1723622677133,20.0,145.58,145.52,6.4776]
[1723622681345,19.6287,145.59,145.52,6.4776]
[1723622681635,6.99469,145.58,145.52,6.4776]
[1723622682026,6.8692,145.58,145.52,6.4776]
[1723622682441,19.6287,145.59,145.52,6.4776]
[1723622682817,12.76,145.59,145.52,6.4776]
[1723622683426,0.12549,145.6,145.52,6.4776]
[1723622683641,71.99359,145.6,145.52,19.2376]
[1723622684151,6.8686,145.59,145.52,19.2376]
[1723622684830,26.99369,145.6,145.52,19.2376]
[1723622686457,0.12549,145.6,145.52,19.2376]
[1723622686760,6.8677,145.61,145.53,20.0]
[1723622689689,6.8681,145.6,145.53,20.0]
[1723622691041,19.6281,145.6,145.53,20.0]
[1723622691243,52.24517,145.59,145.53,20.0]
[1723622692352,52.24517,145.59,145.52,6.4776]
[1723622693068,21.34682053,145.58,145.52,6.4776]
[1723622693384,12.76,145.56,145.52,6.4776]
[1723622693565,1.71791678,145.55,145.52,6.4776]
[1723622693871,1.71794804,145.54,145.52,6.4776]
[1723622694842,1.71796184,145.55,145.52,6.4776]
[1723622695335,1.71799087,145.54,145.52,6.4776]
[1723622696476,1.71797536,145.55,145.52,6.4776]
[1723622696648,1.71797537,145.54,145.48,6.0975]
[1723622696852,14.47797537,145.54,145.49,20.0]
[1723622698171,1.71797537,145.54,145.49,20.0]
[1723622700555,12.76,145.56,145.49,20.0]
[1723622701091,20.0,145.57,145.49,20.0]
[1723622701295,32.76,145.58,145.49,20.0]
[1723622701594,34.47780686,145.58,145.49,20.0]
[1723622701978,32.76,145.58,145.49,20.0]
[1723622702274,45.12549,145.57,145.49,20.0]
[1723622703395,51.99509,145.57,145.49,20.0]
[1723622703577,0.12549,145.56,145.49,20.0]
[1723622703765,51.99509,145.57,145.49,20.0]
[1723622704371,6.87,145.56,145.49,20.0]
[1723622704598,1.71792678,145.55,145.49,20.0]
[1723622704889,1.7179269,145.54,145.49,20.0]
[1723622705593,19.63,145.56,145.49,20.0]
[1723622705896,12.76,145.56,145.49,20.0]
[1723622715602,57.88549,145.57,145.49,32.76]
[1723622716904,39.75469,145.58,145.5,15.6445]
[1723622719007,34.60321871,145.58,145.5,15.6445]
[1723622719205,6.87,145.56,145.5,15.6445]
[1723622720378,1.71786592,145.55,145.5,15.6445]
[1723622721698,20.0,145.58,145.5,28.4045]
[1723622721897,6.8695,145.58,145.5,28.4045]
[1723622722613,6.8704,145.56,145.5,15.6445]
[1723622723284,20.0,145.55,145.5,15.6445]
[1723622724812,26.8702,145.56,145.5,15.6445]
[1723622725014,1.71791422,145.55,145.5,15.6445]
[1723622726216,26.8702,145.56,145.5,15.6445]
[1723622729092,20.0,145.56,145.5,15.6445]
[1723622729407,6.8706,145.55,145.5,15.6445]
[1723622730590,29.9308,145.6,145.5,15.6445]
[1723622730993,29.9308,145.6,145.5,28.4045]
[1723622731289,6.8692,145.58,145.5,28.4045]
[1723622732288,6.8692,145.58,145.51,6.1083]
[1723622732512,6.8687,145.59,145.51,6.1083]
[1723622732702,20.0,145.58,145.51,6.1083]
[1723622733589,6.8687,145.59,145.51,18.8683]
[1723622735696,5.43622941,145.63,145.53,29.45309]
[1723622735883,6.8663,145.64,145.56,15.1436]
[1723622736090,7.14851302,145.65,145.57,12.76]
[1723622736394,6.8648,145.67,145.59,19.0671]
[1723622737005,6.866,145.65,145.59,6.3071]
[1723622737207,6.8662,145.64,145.59,6.3071]
[1723622737516,6.8658,145.65,145.59,6.3071]
[1723622737688,5.43622941,145.68,145.59,6.3071]
[1723622737891,19.6248,145.68,145.6,15.0598]
[1723622739113,20.0,145.67,145.6,15.0598]
[1723622740314,6.864,145.69,145.61,12.88549]
[1723622740510,20.0,145.68,145.61,12.88549]
[1723622741017,6.8635,145.7,145.61,12.88549]
[1723622741224,20.0,145.69,145.62,20.0]
[1723622741797,26.864,145.69,145.62,20.0]
[1723622741998,12.76,145.68,145.61,20.0]
[1723622742415,6.8651,145.67,145.61,20.0]
[1723622743123,26.8641,145.69,145.61,20.0]
[1723622743429,26.8641,145.69,145.62,0.92637778]
[1723622744303,26.8641,145.69,145.61,20.0]
[1723622744508,26.8641,145.69,145.62,0.92640597]
[1723622744714,20.0,145.69,145.62,0.92640597]
[1723622744921,12.76,145.7,145.62,13.68640597]
[1723622745126,6.8628,145.72,145.63,26.4818]
[1723622745423,26.8632,145.71,145.64,0.93104664]
[1723622745601,26.8632,145.71,145.65,0.93129855]
[1723622746021,6.8635,145.7,145.65,0.93129855]
[1723622746621,6.8635,145.7,145.64,0.93129869]
[1723622746821,6.8635,145.7,145.63,26.4818]
[1723622748019,26.8629,145.71,145.64,17.22228455]
[1723622748226,39.6229,145.71,145.65,0.93952005]
[1723622748426,6.8637,145.7,145.65,0.93952005]
[1723622748629,6.8637,145.7,145.64,16.2827]
[1723622750349,6.8637,145.7,145.65,0.93906853]
[1723622751031,6.8637,145.7,145.64,16.2827]
[1723622752329,6.8637,145.7,145.65,0.9409846]
[1723622753947,6.8637,145.7,145.64,16.2827]
[1723622755953,6.8639,145.69,145.64,16.2827]
[1723622757270,6.8644,145.68,145.64,16.2827]
[1723622758452,19.624,145.69,145.64,16.2827]
[1723622758945,6.8644,145.68,145.64,16.2827]
[1723622759155,6.8648,145.67,145.64,16.2827]
[1723622760952,6.8645,145.68,145.64,16.2827]
[1723622765369,19.624,145.69,145.64,16.2827]
[1723622765575,45.0,145.68,145.64,16.2827]
[1723622768140,7.11448,145.7,145.64,16.2827]
[1723622768548,19.87448,145.7,145.64,16.2827]
[1723622770649,6.864,145.69,145.64,16.2827]
[1723622773173,6.8646,145.68,145.64,16.2827]
[1723622774669,6.8648,145.67,145.64,16.2827]
[1723622774883,6.8648,145.67,145.63,6.4818]
[1723622774884,6.8653,145.66,145.63,6.4818]
[1723622775177,6.865,145.67,145.63,6.4818]
[1723622778055,6.8653,145.66,145.63,6.4818]
[1723622778249,12.76,145.68,145.63,6.4818]
[1723622778449,6.8649,145.67,145.63,6.4818]
[1723622778749,12.76,145.64,145.58,21.4145]
[1723622779468,19.6265,145.64,145.58,21.4145]
[1723622782576,1.71696111,145.63,145.58,21.4145]
[1723622783480,1.71696111,145.63,145.52,1.19454846]
[1723622783481,12.76,145.6,145.54,22.8504]
[1723622783694,19.6285,145.6,145.54,22.8504]
[1723622783863,1.71735059,145.59,145.54,22.8504]
[1723622784263,19.6285,145.6,145.54,22.8504]
[1723622784486,51.8686,145.59,145.54,22.8504]
[1723622784783,53.5861012,145.59,145.54,22.8504]
[1723622785083,51.8686,145.59,145.54,22.8504]
[1723622785770,12.76,145.58,145.54,22.8504]
[1723622786291,19.6291,145.58,145.54,22.8504]
[1723622787267,12.76,145.58,145.54,22.8504]
[1723622788188,19.6291,145.58,145.54,22.8504]
[1723622788376,12.76,145.58,145.54,22.8504]
[1723622789966,19.6291,145.58,145.54,22.8504]
[1723622790366,12.76,145.58,145.54,22.8504]
[1723622792168,19.6293,145.58,145.54,22.8504]
[1723622793794,12.76,145.58,145.54,22.8504]
[1723622796969,6.8687,145.59,145.54,22.8504]
[1723622798294,6.8691,145.58,145.54,22.8504]
[1723622799187,33.2271,145.64,145.54,22.8504]
[1723622799374,6.8683,145.6,145.54,22.8504]
[1723622802479,6.8686,145.59,145.54,22.8504]
[1723622802677,6.8691,145.58,145.54,22.8504]
[1723622804000,6.8687,145.59,145.54,22.8504]
[1723622804797,12.76,145.61,145.54,22.8504]
[1723622805103,19.6279,145.61,145.54,22.8504]
[1723622808619,5.43622941,145.67,145.54,35.6104]
[1723622808784,6.8667,145.63,145.55,20.0]
[1723622809313,19.6263,145.64,145.55,20.0]
[1723622809988,45.0,145.63,145.55,20.0]
[1723622810314,5.43622941,145.67,145.55,20.0]
[1723622810315,2.76312959,145.7,145.58,12.76]
[1723622810521,19.6246,145.68,145.6,12.76]
[1723622810823,19.6246,145.68,145.61,6.6596]
[1723622810989,6.8648,145.67,145.61,6.6596]
[1723622811196,19.6245,145.68,145.61,6.6596]
[1723622811694,16.613,145.72,145.62,12.76]
[1723622811902,31.0280446,145.74,145.63,27.9237]
[1723622811903,6.8634,145.7,145.63,27.9237]
[1723622813020,6.8639,145.69,145.63,27.9237]
[1723622816225,12.76,145.69,145.63,15.1637]
[1723622816397,6.8648,145.67,145.63,15.1637]
[1723622816932,6.8645,145.68,145.63,15.1637]
[1723622817220,6.8648,145.67,145.63,15.1637]
[1723622817787,6.8644,145.68,145.63,15.1637]
[1723622818998,19.624,145.69,145.64,1.36975081]
[1723622819195,6.864,145.69,145.63,15.1637]
[1723622820229,6.8636,145.7,145.63,15.1637]
[1723622820930,6.8639,145.69,145.63,15.1637]
[1723622822032,6.8635,145.7,145.63,15.1637]
[1723622822232,6.8634,145.7,145.63,15.1637]
[1723622823317,33.4433,145.76,145.65,6.6571]
[1723622823508,6.8627,145.72,145.65,6.6571]
[1723622823708,6.8627,145.72,145.66,20.0]
[1723622825211,6.8621,145.73,145.67,16.6086]
[1723622825623,6.8616,145.74,145.67,16.6086]
[1723622826137,6.8611,145.75,145.67,16.6086]
[1723622826439,12.76,145.8,145.71,15.0552]
[1723622826810,6.8601,145.77,145.71,15.0552]
[1723622827013,6.8601,145.77,145.72,0.65176689]
[1723622827245,6.8601,145.77,145.71,15.0552]
[1723622829523,12.76,145.79,145.71,15.0552]
[1723622829726,6.8607,145.76,145.71,15.0552]
[1723622830612,19.6207,145.76,145.71,15.0552]
[1723622830824,6.861,145.75,145.71,15.0552]
[1723622831023,12.76,145.74,145.69,6.5173]
[1723622831234,62.1495,145.78,145.69,6.5173]
[1723622831235,12.76,145.72,145.69,6.5173]
[1723622831432,19.6216,145.74,145.69,6.5173]
[1723622831638,12.76,145.74,145.69,6.5173]
[1723622832033,19.6216,145.74,145.69,6.5173]
[1723622832233,6.862,145.73,145.69,6.5173]
[1723622832923,12.76,145.74,145.69,6.5173]
[1723622833538,6.8614,145.75,145.69,6.5173]
[1723622833714,19.6214,145.75,145.69,6.5173]
[1723622837146,12.76,145.73,145.69,6.5173]
[1723622838145,6.8612,145.75,145.69,6.5173]
[1723622838348,19.6212,145.75,145.69,6.5173]
[1723622838752,19.6212,145.75,145.68,15.7949]
[1723622838753,12.76,145.71,145.68,15.7949]
[1723622839046,12.76,145.69,145.68,15.7949]
[1723622839255,12.76,145.71,145.68,15.7949]
[1723622839619,19.6229,145.71,145.68,15.7949]
[1723622839873,19.6229,145.71,145.65,6.256]
[1723622839874,6.8635,145.7,145.65,22.8757]
[1723622840731,19.623,145.71,145.65,22.8757]
[1723622845849,12.76,145.69,145.65,22.8757]
[1723622848658,12.76,145.71,145.65,22.8757]
[1723622848955,12.76,145.73,145.65,22.8757]
[1723622849257,12.76,145.73,145.66,20.0]
[1723622853464,19.622,145.73,145.66,20.0]
[1723622854749,12.76,145.73,145.66,20.0]
[1723622855447,12.76,145.73,145.67,1.37211569]
[1723622855641,12.76,145.73,145.68,1.37220332]
[1723622855842,12.76,145.73,145.66,20.0]
[1723622857067,19.622,145.73,145.66,20.0]
[1723622858944,6.8625,145.72,145.66,20.0]
[1723622860656,47.91784126,145.79,145.66,20.0]
[1723622860867,12.76,145.73,145.66,20.0]
[1723622861174,19.6221,145.73,145.66,20.0]
[1723622863761,51.8625,145.72,145.66,20.0]
[1723622864277,45.0,145.72,145.66,20.0]
[1723622864754,12.76,145.71,145.66,20.0]
[1723622866783,19.6229,145.71,145.66,20.0]
[1723622867074,12.76,145.69,145.65,22.8757]
[1723622870676,1.71607463,145.7,145.65,22.8757]
[1723622870878,12.76,145.69,145.65,22.8757]
[1723622872689,21.34001711,145.69,145.65,22.8757]
[1723622872863,12.76,145.67,145.62,10.0]
[1723622873063,19.6251,145.67,145.62,10.0]
[1723622873278,12.76,145.67,145.62,10.0]
[1723622874871,12.76,145.69,145.62,10.0]
[1723622875586,19.6239,145.69,145.62,10.0]
[1723622876779,6.8643,145.68,145.62,10.0]
[1723622878963,19.6243,145.68,145.62,10.0]
[1723622879684,12.76,145.68,145.62,10.0]
[1723622879886,12.76,145.68,145.63,20.0]
[1723622880086,6.8636,145.7,145.63,20.0]
[1723622880385,12.76,145.7,145.63,20.0]
[1723622880963,5.43622941,145.75,145.64,21.7173]
[1723622881192,19.6216,145.74,145.65,32.88549]
[1723622881398,19.622,145.73,145.65,32.76]
[1723622883207,12.76,145.73,145.65,32.76]
[1723622884288,6.8616,145.74,145.65,32.76]
[1723622884289,12.76,145.74,145.65,32.76]
[1723622884496,6.8613,145.75,145.66,22.612]
[1723622884681,46.71561944,145.74,145.67,20.0]
[1723622885189,45.0,145.74,145.67,20.0]
[1723622886212,16.63589559,145.8,145.68,22.2427]
[1723622886382,12.76,145.77,145.69,20.0]
[1723622886578,19.6204,145.77,145.69,20.0]
[1723622887783,19.6213,145.75,145.69,20.0]
[1723622888087,6.8616,145.74,145.69,20.0]
[1723622889000,19.621,145.75,145.69,20.0]
[1723622890994,12.76,145.75,145.69,20.0]
[1723622892786,19.6202,145.77,145.69,20.0]
[1723622893494,19.6202,145.77,145.68,22.2427]
[1723622893693,19.6202,145.77,145.69,20.0]
[1723622895717,6.8606,145.76,145.69,20.0]
[1723622897100,6.8613,145.75,145.69,20.0]
[1723622898445,6.8607,145.76,145.69,20.0]
[1723622898728,19.6201,145.77,145.69,20.0]
[1723622899740,19.6201,145.77,145.7,15.5881]
[1723622905432,6.8601,145.77,145.7,15.5881]
[1723622905738,19.6201,145.77,145.7,15.5881]
[1723622906813,19.6201,145.77,145.71,20.0]
[1723622907020,12.76,145.77,145.71,20.0]
[1723622907226,6.98529,145.78,145.72,6.4639]
[1723622907734,5.43622941,145.83,145.72,6.4639]
[1723622907735,22.58002941,145.83,145.72,6.4639]
[1723622907930,12.76,145.82,145.73,47.9325]
[1723622908145,6.8582,145.81,145.73,47.9325]
[1723622909139,6.8571,145.84,145.75,12.76]
[1723622909447,12.76,145.84,145.76,35.0204]
[1723622909736,6.8573,145.83,145.76,35.0204]
[1723622910114,6.8573,145.83,145.76,15.0204]
[1723622912940,6.8579,145.82,145.76,15.0204]
[1723622913637,19.6179,145.82,145.76,15.0204]
[1723622915245,6.1306,145.88,145.77,32.76]
[1723622915452,6.8555,145.87,145.78,6.0559]
[1723622915745,12.76,145.87,145.8,15.1206]
[1723622915930,19.6155,145.87,145.8,15.1206]
[1723622917531,12.76,145.87,145.8,15.1206]
[1723622917844,12.76,145.89,145.81,20.0]
[1723622918246,19.6145,145.89,145.81,20.0]
[1723622918413,6.8549,145.88,145.81,20.0]
[1723622918847,12.76,145.89,145.81,20.0]
[1723622918848,12.76,145.87,145.81,20.0]
[1723622919048,6.8561,145.86,145.81,20.0]
[1723622919617,19.6163,145.85,145.81,20.0]
[1723622919833,12.76,145.85,145.81,20.0]
[1723622920844,12.76,145.85,145.8,15.1206]
[1723622920845,6.8571,145.84,145.8,15.1206]
[1723622921052,12.76,145.85,145.8,15.1206]
[1723622921053,19.6165,145.85,145.8,15.1206]
[1723622921232,19.6165,145.85,145.81,20.0]
[1723622921411,12.76,145.85,145.81,20.0]
[1723622923247,12.76,145.87,145.81,20.0]
[1723622923915,12.76,145.89,145.81,20.0]
[1723622924117,12.76,145.89,145.82,6.4539]
[1723622924422,19.6146,145.89,145.82,6.4539]
[1723622925336,6.8549,145.88,145.82,6.4539]
[1723622925650,19.6146,145.89,145.82,6.4539]
[1723622926623,12.76,145.89,145.82,6.4539]
[1723622927045,6.8541,145.9,145.82,19.2139]
[1723622928237,17.131,145.94,145.83,36.6165]
[1723622928554,6.8545,145.89,145.83,36.6165]
[1723622929968,6.8552,145.88,145.83,36.6165]
[1723622930147,19.6146,145.89,145.83,36.6165]
[1723622930661,12.76,145.89,145.83,36.6165]
[1723622934259,19.6146,145.89,145.83,36.6165]
[1723622935056,12.76,145.87,145.83,16.6165]
[1723622936261,12.76,145.89,145.83,16.6165]
[1723622937938,19.6145,145.89,145.83,16.6165]
[1723622939338,6.8557,145.87,145.83,16.6165]
[1723622939664,8.56980677,145.87,145.83,16.6165]
[1723622940041,51.8551,145.88,145.83,16.6165]
[1723622941959,19.6156,145.87,145.83,16.6165]
[1723622942153,1.96515566,145.86,145.82,6.4539]
[1723622942348,19.6164,145.85,145.82,6.4539]
[1723622942665,12.76,145.85,145.82,6.4539]
[1723622943248,17.26289,145.88,145.82,6.4539]
[1723622943249,19.6155,145.87,145.82,6.4539]
[1723622943872,12.76,145.87,145.82,6.4539]
[1723622944951,19.6155,145.87,145.82,6.4539]
[1723622946573,12.76,145.87,145.82,6.4539]
[1723622947240,12.76,145.89,145.82,6.4539]
[1723622947440,12.76,145.91,145.83,35.7307]
[1723622947872,19.6138,145.91,145.83,35.7307]
[1723622948448,19.6138,145.91,145.84,1.3702482]
[1723622948669,19.6138,145.91,145.83,35.7307]
[1723622948882,6.8541,145.9,145.83,35.7307]
[1723622949462,57.76,145.89,145.83,35.7307]
[1723622949975,6.8552,145.88,145.83,35.7307]
[1723622950644,64.73999,145.89,145.83,35.7307]
[1723622950842,0.12549,145.88,145.83,35.7307]
[1723622951068,12.76,145.89,145.83,35.7307]
[1723622951272,19.6145,145.89,145.83,35.7307]
[1723622951853,6.8545,145.89,145.83,35.7307]
[1723622952055,0.12549,145.91,145.83,35.7307]
[1723622952056,19.6141,145.9,145.83,35.7307]
[1723622952262,45.0,145.89,145.83,35.7307]
[1723622953585,19.6141,145.9,145.83,35.7307]
[1723622955286,45.0,145.89,145.83,35.7307]
[1723622955658,51.8546,145.89,145.83,35.7307]
[1723622956266,19.6142,145.9,145.83,35.7307]
[1723622956472,12.76,145.9,145.83,35.7307]
[1723622957759,12.76,145.91,145.83,48.4907]
[1723622958086,6.8532,145.92,145.83,48.4907]
[1723622958273,19.46350593,145.97,145.84,51.89558]
[1723622958473,19.6124,145.94,145.86,15.9928]
[1723622958680,12.76,145.94,145.87,20.0]
[1723622958865,0.822213,145.97,145.88,6.6446]
[1723622959067,13.582213,145.97,145.9,15.9928]
[1723622959855,20.432913,145.97,145.9,15.9928]
[1723622960270,13.582213,145.97,145.9,15.9928]
[1723622960602,20.433013,145.97,145.91,20.0]
[1723622960962,13.582213,145.97,145.91,20.0]
[1723622961471,20.432913,145.97,145.91,20.0]
[1723622962062,13.582213,145.97,145.91,20.0]
[1723622962270,0.822213,145.97,145.91,20.0]
[1723622962865,0.822213,145.97,145.92,6.3682]
[1723622965680,0.822213,145.97,145.93,20.0]
[1723622965883,0.822213,145.97,145.94,15.8271]
[1723622967282,0.822213,145.97,145.95,21.36957787]
[1723622967686,0.822213,145.97,145.96,1.36970218]
[1723622968097,0.822213,145.97,145.95,20.0]
[1723622968803,0.822213,145.97,145.96,6.5839]
[1723622969022,0.822213,145.97,145.96,26.5839]
[1723622969810,17.1143,146.08,145.97,15.472]
[1723622969985,19.6068,146.06,145.98,20.0]
[1723622970184,12.76,146.06,145.98,32.76]
[1723622970381,19.6065,146.06,145.98,32.76]
[1723622971991,12.76,146.06,145.98,32.76]
[1723622972174,12.76,146.06,145.99,0.25098]
[1723622972378,19.6056,146.08,145.99,0.25098]
[1723622972610,19.6056,146.08,146.0,6.2105]
[1723622972789,19.6056,146.08,146.01,20.0]
[1723622973414,6.846,146.07,146.0,6.2105]
[1723622973714,6.846,146.07,146.01,20.0]
[1723622973882,19.6052,146.09,146.02,16.1194]
[1723622974082,6.8446,146.1,146.02,16.1194]
[1723622974311,12.76,146.1,146.02,16.1194]
[1723622974483,19.6046,146.1,146.03,20.0]
[1723622974801,12.76,146.1,146.03,20.0]
[1723622975294,6.8442,146.11,146.03,20.0]
[1723622975495,6.8442,146.11,146.05,16.6096]
[1723622975790,30.776013,146.12,146.06,20.0]
[1723622976000,37.619713,146.12,146.06,20.0]
[1723622976202,30.776013,146.12,146.06,20.0]
[1723622976813,37.619713,146.12,146.06,20.0]
[1723622977194,37.619713,146.12,146.07,22.7418]
[1723622977195,30.776013,146.12,146.07,22.7418]
[1723622977517,30.776013,146.12,146.08,20.0]
[1723622979329,30.776013,146.12,146.09,0.12549]
[1723622979522,30.776013,146.12,146.09,45.25098]
[1723622981192,30.776013,146.12,146.1,20.0]
[1723622981931,30.776013,146.12,146.07,22.7418]
[1723622982216,30.776013,146.12,146.08,20.0]
[1723622983136,43.536013,146.12,146.08,20.0]
[1723622983614,43.536013,146.12,146.07,22.7418]
[1723622984413,6.8443,146.11,146.03,6.6153]
[1723622984597,43.536013,146.12,146.03,23.159]
[1723622984802,43.536013,146.12,146.04,20.0]
[1723622985001,50.379713,146.12,146.04,20.0]
[1723622986102,37.619713,146.12,146.04,20.0]
[1723622986306,6.8442,146.11,146.04,20.0]
[1723622986716,39.33102504,146.12,146.04,20.0]
[1723622986916,1.71121111,146.11,146.04,20.0]
[1723622987500,8.55541111,146.11,146.04,20.0]
[1723622987701,30.776013,146.12,146.04,20.0]
[1723622987919,37.619813,146.12,146.04,20.0]
[1723622988502,8.55535899,146.11,146.04,20.0]
[1723622988703,37.619713,146.12,146.04,20.0]
[1723622989103,6.8441,146.11,146.04,20.0]
[1723622989328,30.776013,146.12,146.04,20.0]
[1723622989825,6.8452,146.09,146.04,20.0]
[1723622990303,52.09538,146.11,146.04,20.0]
[1723622990508,45.25098,146.11,146.04,20.0]
[1723622990830,6.8452,146.09,146.04,20.0]
[1723622991304,6.8447,146.1,146.04,20.0]
[1723622991729,45.25098,146.11,146.04,20.0]
[1723622991937,6.8464,146.07,146.03,23.159]
[1723622992137,1.71181604,146.06,145.99,21.7789]
[1723622992435,6.8469,146.06,145.99,21.7789]
[1723622992632,38.3775,146.04,145.99,21.7789]
[1723622993126,31.53,146.04,145.99,21.7789]
[1723622993436,38.3765,146.06,145.99,21.7789]
[1723622993606,45.12549,146.05,145.99,21.7789]
[1723622994031,38.3765,146.06,145.99,21.7789]
[1723622994434,38.3757,146.08,145.99,21.7789]
[1723622994739,38.3756,146.08,146.0,20.0]
[1723622995129,6.846,146.07,146.0,20.0]
[1723622995708,31.53,146.08,146.0,20.0]
[1723622995907,38.3755,146.08,146.0,20.0]
[1723622996132,38.3755,146.08,145.96,21.9675]
[1723622996133,31.53,146.06,145.96,21.9675]
[1723622996318,45.25098,146.05,145.96,21.9675]
[1723622996720,52.09798,146.05,145.96,21.9675]
[1723622997131,6.847,146.05,145.96,21.9675]
[1723622997556,6.847,146.05,145.97,20.0]
[1723622998138,6.8474,146.04,145.97,20.0]
[1723622998549,6.8471,146.05,145.97,20.0]
[1723622999046,6.8474,146.04,145.97,20.0]
[1723622999712,6.8479,146.03,145.97,20.0]
[1723622999915,6.8485,146.02,145.97,20.0]
[1723623000145,6.8492,146.01,145.97,20.0]
[1723623000321,6.8493,146.0,145.96,21.9675]
[1723623000527,6.8497,145.99,145.96,21.9675]
[1723623000713,1.71232087,146.01,145.96,21.9675]
[1723623000920,6.8489,146.01,145.96,21.9675]
[1723623001538,6.8494,146.0,145.96,21.9675]
[1723623001961,6.8498,145.99,145.97,20.0]
[1723623002133,6.8494,146.0,145.97,20.0]
[1723623002560,6.8489,146.01,145.97,20.0]
[1723623002751,1.7125305,146.0,145.97,20.0]
[1723623002956,6.8489,146.01,145.97,20.0]
[1723623003348,8.56192917,146.0,145.96,21.9675]
[1723623003858,38.3785,146.02,145.96,21.9675]
[1723623004158,38.3777,146.04,145.96,21.9675]
[1723623004957,38.3777,146.04,145.97,20.0]
[1723623005159,31.53,146.06,145.97,20.0]
[1723623005337,6.847,146.05,145.97,20.0]
[1723623005539,6.8476,146.04,145.97,20.0]
[1723623005733,6.848,146.03,145.97,20.0]
[1723623005927,31.53,146.06,145.97,20.0]
[1723623006147,31.53,146.06,145.98,0.25098]
[1723623006427,31.53,146.08,145.98,45.25098]
[1723623006631,6.8461,146.07,145.99,20.0]
[1723623007057,6.8465,146.06,145.99,20.0]
[1723623007955,6.846,146.07,145.99,20.0]
[1723623008658,6.8465,146.06,145.99,20.0]
[1723623008866,6.848,146.03,145.99,20.0]
[1723623009059,6.848,146.03,145.96,22.09299]